[Event "Czech Open-Rapid 2022"]
[Site "Pardubice"]
[Date "2022.07.20"]
[Round "1.25"]
[White "Juros, Zbynek"]
[Black "Goroshkov, Maksym"]
[Result "0-1"]
[ECO "C31"]
[WhiteElo "1575"]
[BlackElo "2240"]
[Annotator "TA"]
[PlyCount "64"]
[EventDate "2022.07.20"]
[EventType "swiss"]
[EventCountry "CZE"]
[SourceTitle "playchess.com"]
[Source "ChessBase"]
[SourceQuality "1"]
[TimeControl "1200+10"]

{[%evp 9,64,48,43,24,40,-79,-93,-83,0,0,0,-2,0,-2,0,0,0,-12,-10,-37,0,-381,-363,-628,-570,-706,-693,-730,-730,-738,-729,-780,-626,-624,-338,-332,-318,-378,-374,-334,-347,-425,-435,-733,-732,-814,-809,-29984,-29985,-29984,-29985,-29986,-29987,-29987,-29988,-29983,-29984]} 1. e4 {[%emt 0:00:01]} e5 {[%emt 0:00:01]} 2. f4 {[%emt 0:00:02]} d5 {[%emt 0:00:01]} 3. exd5 {[%emt 0:00:02]} e4 {[%emt 0:00:01]} 4. d3 {[%emt 0:00:01]} exd3 {[%emt 0:00:01]} 5. Bxd3 {[%emt 0:00:02]} Nf6 {[%emt 0:00:03]} 6. Qe2+ {[%emt 0:01:45] C32: Falkbeer Counter Gambit: 3 exd5 e4 4 d3 Nf6.} Be7 {[%emt 0:00:03] [#]} 7. c4 $146 {[%emt 0:02:12] [#]} (7. Bd2 $14 {keeps the upper hand.}) ({Predecessor:} 7. Nc3 O-O 8. Nf3 c6 9. Be3 Bb4 10. O-O Bxc3 11. bxc3 Nxd5 12. Bc5 Re8 13. Ne5 {1-0 (21) Mihailov,I (2044)-Brosman,A (1821) Slanic Moldova 2017}) 7... O-O $1 $17 {[%emt 0:00:02] Threatens to win with ...Re8.} 8. Nf3 {[%emt 0:00:09] Black is better.} c6 {[%emt 0:00:07]} (8... Bc5 $17) 9. O-O $11 {[%emt 0:02:13]} cxd5 {[%emt 0:00:07]} 10. cxd5 {[%emt 0:01:57]} Nxd5 {[%emt 0:00:24]} 11. Nc3 {[%emt 0:00:07]} Nxc3 {[%emt 0:00:24]} 12. bxc3 {[%emt 0:00:08]} Nc6 {[%emt 0:00:07]} 13. Ng5 {[%emt 0:00:10]} g6 {[%emt 0:00:21][%cal Oc8g4]} 14. Bb2 {[%emt 0:04:32]} Bf6 {[%emt 0:00:16][%cal Oc8g4]} 15. f5 $2 {[%emt 0:00:58][%mdl 8192] Black continues to play with concentration.} Bxg5 $19 {[%emt 0:00:13]} 16. f6 $2 {[%emt 0:00:19]} (16. Rae1) 16... Bxf6 17. Rxf6 {[%emt 0:00:04]} Qxf6 {[%emt 0:00:24]} 18. c4 {[%emt 0:00:08]} Nd4 {[%emt 0:00:03]} 19. Qd2 {[%emt 0:01:50]} Rd8 {[%emt 0:00:03]} 20. Rf1 {[%emt 0:00:02]} Qg7 {[%emt 0:00:17]} 21. Rf4 {[%emt 0:00:38]} Be6 {[%emt 0:00:13]} 22. Qf2 {[%emt 0:01:08] [#]} Rac8 $1 {[%emt 0:02:01][%cal Oe6c4]} 23. Rxd4 {[%emt 0:00:39]} (23. Bxd4 Qh6) 23... Rxd4 {[%emt 0:00:01]} 24. Bxd4 {[%emt 0:00:03]} f6 {[%emt 0:00:02]} ({But not} 24... Qh6 $2 25. h4 $19) 25. Bxf6 {[%emt 0:00:05]} Qf7 {[%emt 0:00:03]} 26. g4 {[%emt 0:01:57]} (26. c5 $142) 26... Bxc4 {[%emt 0:00:26]} 27. Be4 {[%emt 0:02:34]} Bd5 {[%emt 0:00:08]} 28. Bg2 {[%emt 0:00:45]} Rc1+ {[%emt 0:00:19] Black mates.} 29. Bf1 {[%emt 0:00:01]} Bc4 {[%emt 0:00:02]} 30. g5 {[%emt 0:00:24]} Rxf1+ {[%emt 0:00:02]} 31. Qxf1 {[%emt 0:00:02]} Bxf1 {[%emt 0:00:01]} 32. Kxf1 {[%emt 0:00:01]} Qxa2 {[%emt 0:00:04] Weighted Error Value: White=1.24/Black=0.28 (precise)} 0-1

[Event "Czech Open-Rapid 2022"]
[Site "Pardubice"]
[Date "2022.07.20"]
[Round "1.26"]
[White "Sarkar, Justin"]
[Black "Cejka, Jan"]
[Result "1-0"]
[ECO "E15"]
[WhiteElo "2346"]
[BlackElo "1731"]
[Annotator "TA"]
[PlyCount "57"]
[EventDate "2022.07.20"]
[EventType "swiss"]
[EventCountry "CZE"]
[SourceTitle "playchess.com"]
[Source "ChessBase"]
[SourceQuality "1"]
[TimeControl "1200+10"]

{[%evp 17,56,39,39,29,39,47,43,52,52,48,54,19,110,121,112,112,196,189,239,249,347,344,579,577,609,197,194,136,243,125,260,208,606,594,29991,29992,29997,29998,29998,29999,29999]} 1. d4 {[%emt 0:00:08]} Nf6 {[%emt 0:00:02]} 2. c4 {[%emt 0:00:01]} e6 {[%emt 0:00:02]} 3. Nf3 {[%emt 0:00:16]} b6 {[%emt 0:00:02]} 4. g3 {[%emt 0:00:21]} Bb7 {[%emt 0:00:22]} 5. Bg2 {[%emt 0:00:02]} c5 {[%emt 0:00:21]} 6. O-O {[%emt 0:02:38]} cxd4 {[%emt 0:01:07]} 7. Qxd4 {[%emt 0:00:05]} Nc6 {[%emt 0:00:36]} 8. Qf4 {[%emt 0:00:06]} Be7 {[%emt 0:00:50] is more profitable than 8...Ne7 at the moment.} 9. Nc3 {[%emt 0:00:19]} O-O {[%emt 0:00:48]} 10. e4 {[%emt 0:00:47] A30: Symmetrical English: Double Fianchetto and Hedgehog.} d6 {[%emt 0:01:19]} 11. Rd1 {[%emt 0:00:09]} a6 {[%emt 0:00:50]} 12. b3 {[%emt 0:00:16] White is slightly better.} Qc7 {[%emt 0:00:51][%cal Ob6b5]} 13. Bb2 {[%emt 0:00:23]} Rfd8 {[%emt 0:00:40]} 14. Rac1 {[%emt 0:00:03][%cal Oc3d5]} Rac8 {[%emt 0:00:25] [#]} (14... Qb8 $11) 15. Nd5 $1 $16 {[%emt 0:00:19][%mdl 512] White is more active.} exd5 {[%emt 0:01:49]} 16. cxd5 {[%emt 0:00:02]} Qd7 {[%emt 0:00:02]} 17. dxc6 $18 {[%emt 0:00:02] [#]} Bxc6 $146 {[%emt 0:00:10]} (17... Rxc6 {was called for.} 18. Rxc6 Bxc6) ({Predecessor:} 17... Rxc6 18. Rxc6 Bxc6 19. Nd4 Ne8 20. Nf5 Bf8 21. h4 f6 22. Kh2 Qf7 23. Qe3 b5 24. Qb6 Qd7 25. Bh3 {1-0 (25) Adamski,J (2415)-Serwinski,B Tarnow 1979}) 18. Nd4 {[%emt 0:00:47] Nf5 is the strong threat.} Bb7 {[%emt 0:01:22]} 19. Rxc8 {[%emt 0:02:27]} Rxc8 {[%emt 0:00:30]} (19... Bxc8 20. Nf5 Nh5) 20. Nf5 {[%emt 0:00:02]} Rc2 {[%emt 0:01:08]} 21. Nxe7+ $2 {[%emt 0:05:37]} (21. Bxf6 Bxf6 22. e5 dxe5 23. Rxd7 exf4 24. Rxb7) 21... Qxe7 {[%emt 0:00:05]} 22. Qxd6 {[%emt 0:00:02]} (22. Bxf6 $18 gxf6 23. Rxd6) 22... Kf8 {[%emt 0:02:42]} (22... Qxd6 $16 23. Rxd6 h5) 23. Bxf6 {[%emt 0:05:50]} (23. Ba3 $18 Qxd6 24. Rxd6 (24. Bxd6+ Ke8 $16)) 23... gxf6 {[%emt 0:00:08]} (23... Qxd6 $16 24. Rxd6 gxf6) 24. Qxb6 $40 {[%emt 0:00:04][%cal Oe4e5][%mdl 128] Black must now prevent e5! White attacks with force.} Rxa2 $2 {[%emt 0:00:36]} (24... Kg7 25. Qa7 Qb4) 25. e5 {[%emt 0:00:04][%cal Be4e5,Be5f6][%mdl 32]} Bxg2 {[%emt 0:00:33]} 26. exf6 {[%emt 0:00:02] White mates.} ({Less strong is} 26. Kxg2 Qxe5 27. Rd4 h5 $16) 26... Qe8 {[%emt 0:01:18]} 27. Qc5+ {[%emt 0:00:06]} Kg8 {[%emt 0:00:15]} 28. Qg5+ {[%emt 0:00:02]} Kh8 {[%emt 0:00:03]} 29. Qg7# {[%emt 0:00:01] Black got outplayed after the opening.  Weighted Error Value: White=0.37/Black=0.91} 1-0

[Event "Czech Open-Rapid 2022"]
[Site "Pardubice"]
[Date "2022.07.20"]
[Round "1.27"]
[White "Vavrinkova, Jitka"]
[Black "Freisler, Pavel"]
[Result "0-1"]
[ECO "B03"]
[WhiteElo "1548"]
[BlackElo "2256"]
[Annotator "TA"]
[PlyCount "90"]
[EventDate "2022.07.20"]
[EventType "swiss"]
[EventCountry "CZE"]
[SourceTitle "playchess.com"]
[Source "ChessBase"]
[SourceQuality "1"]
[TimeControl "1200+10"]

{[%evp 26,90,-16,-22,-18,-47,-41,-156,-71,-152,-168,-177,-184,-216,-41,-44,-23,-31,0,0,-14,-39,-26,-27,-14,-14,0,0,0,0,0,-3,-9,-18,0,0,-3,-8,17,-51,-57,-101,-101,-98,-79,-100,-104,-110,-67,-250,0,0,0,0,0,-410,-387,-561,-538,-656,-653,-12842,-12843,-12843,-12843,-12844,-12844]} 1. e4 {[%emt 0:00:03][%cal Be2e4,Be4e5][%mdl 32]} Nf6 {[%emt 0:00:01]} 2. e5 {[%emt 0:00:04]} Nd5 {[%emt 0:00:02]} 3. d4 {[%emt 0:00:01]} d6 {[%emt 0:00:00]} 4. c4 {[%emt 0:00:16]} Nb6 {[%emt 0:00:02]} 5. Nf3 {[%emt 0:00:12]} Bg4 {[%emt 0:00:15]} 6. exd6 {[%emt 0:00:32]} cxd6 {[%emt 0:00:02]} 7. Be2 {[%emt 0:00:03]} g6 {[%emt 0:00:05]} 8. Nc3 {[%emt 0:00:31]} Bg7 {[%emt 0:00:02]} 9. O-O {[%emt 0:00:11]} O-O {[%emt 0:00:02]} 10. b3 {[%emt 0:01:14]} Nc6 {[%emt 0:00:32]} 11. Be3 {[%emt 0:01:11]} d5 {[%emt 0:00:22]} 12. c5 {[%emt 0:00:34]} Nc8 {[%emt 0:00:01]} 13. h3 {[%emt 0:00:24]} Bxf3 {[%emt 0:00:03]} 14. Bxf3 {[%emt 0:00:01]} e6 {[%emt 0:00:01] B04: Alekhine's Defence: 4 Nf3.} 15. a3 {[%emt 0:01:07]} N8e7 {[%emt 0:00:06]} 16. g4 {[%emt 0:01:53] [#]} (16. Ne2 $1 $15) 16... e5 $146 {[%emt 0:01:14]} (16... f5 $142 $1 {[%cal Rf5f4] Hoping for ...f4.} 17. Ne2 e5 18. gxf5 Nxf5 19. dxe5 Nxe3 20. fxe3 Qg5+ 21. Kh1 Kh8 22. Qxd5 Qxe3) ({Predecessor:} 16... f5 17. Ne2 fxg4 18. Bxg4 Nf5 19. Nf4 Qf6 20. Ne2 h5 21. Bf3 Nxe3 22. fxe3 Qg5+ 23. Kh1 Qxe3 24. Bg2 Rxf1+ 25. Qxf1 Rf8 {0-1 (25) Kubatko,I (2257)-Manafov,V (2236) Chess.com INT 2021}) 17. Ne2 {[%emt 0:02:51]} (17. Nb5 $142) 17... f5 $17 {[%emt 0:02:01]} 18. dxe5 {[%emt 0:03:15]} Nxe5 {[%emt 0:00:10]} 19. Nd4 {[%emt 0:01:39]} fxg4 $2 {[%emt 0:06:24]} ({Inferior is} 19... f4 20. Bd2 $17) (19... Qd7 $19 20. Be2 f4) 20. Bxg4 $15 {[%emt 0:01:13]} Nxg4 {[%emt 0:00:02]} 21. Qxg4 {[%emt 0:01:02]} Qc8 {[%emt 0:00:21]} 22. Rad1 {[%emt 0:01:27]} Nf5 ({Don't play} 22... Qxc5 23. Ne6 Qc6 24. Nxf8 Rxf8 25. Rc1 $16 (25. Bxa7 Qd6 $16)) 23. Nxf5 {[%emt 0:00:37]} Rxf5 {[%emt 0:01:05]} 24. b4 {[%emt 0:00:16]} Qc6 {[%emt 0:01:25]} 25. Bd4 {[%emt 0:00:09]} Raf8 {[%emt 0:00:06]} 26. Bxg7 {[%emt 0:00:16]} Kxg7 {[%emt 0:00:01][%cal Bg8g7,Bg7f6,Bf6e5,Be5d5,Bd5c4,Bc4b3][%mdl 32]} 27. Qd4+ {[%emt 0:00:02]} Qf6 {[%emt 0:00:41]} 28. Qxf6+ {[%emt 0:00:31]} Kxf6 $11 {[%emt 0:00:01][%mdl 4096] Endgame KRR-KRR} 29. Rfe1 {[%emt 0:00:07]} Rd8 {[%emt 0:00:04]} 30. Re3 {[%emt 0:00:04]} d4 {[%emt 0:00:06]} 31. Red3 {[%emt 0:00:01]} Ke5 {[%emt 0:00:05]} 32. f3 {[%emt 0:00:05]} ({White should try} 32. Re1+ $11 Kf6 33. Re4) 32... Rf4 $1 $15 {[%emt 0:00:09]} 33. Kf2 {[%emt 0:00:09] [#]} Kd5 $1 {[%emt 0:00:03]} 34. Re3 {[%emt 0:00:24]} Rd7 {[%emt 0:00:07] Inhibits Re7.} 35. Kg3 {[%emt 0:00:18]} g5 {[%emt 0:00:02]} 36. Re8 {[%emt 0:00:44]} Kc4 {[%emt 0:00:37]} 37. Re5 $2 {[%emt 0:00:15] [#]} (37. Rc1+ $1 $15 Kb3 38. b5) 37... h6 $2 {[%emt 0:00:05]} (37... d3 $1 $19 {And now ...Kb3 would win.} 38. Kf2 Rh4 39. Rxg5 Rxh3) 38. c6 $1 $11 {[%emt 0:00:10]} bxc6 {[%emt 0:01:06] Strongly threatening ...d3.} 39. Rc5+ {[%emt 0:00:01]} Kb3 {[%emt 0:00:01] aiming for ...d3.} 40. Rxc6 $2 {[%emt 0:00:01][%mdl 8192]} (40. Rd3+ $11 {and White stays safe.} Kb2 41. Rxc6) 40... d3 $19 {[%emt 0:01:04][%cal Bd4d3,Bd3d2][%mdl 32]} 41. Rxh6 {[%emt 0:00:21]} (41. b5 $142 Rc4 42. Kf2) 41... d2 {Black is clearly winning.} 42. Rc6 Rc4 {[%emt 0:00:53]} 43. Rxc4 {[%emt 0:01:15]} Kxc4 {[%emt 0:00:02]} 44. Kf2 {[%emt 0:00:14]} Kc3 {[%emt 0:00:03]} 45. b5 Kc2 {Weighted Error Value: White=0.77/Black=0.30} 0-1

[Event "Czech Open-Rapid 2022"]
[Site "Pardubice"]
[Date "2022.07.20"]
[Round "1.28"]
[White "Tichy, Stepan"]
[Black "Tolmacevs, Romans"]
[Result "1/2-1/2"]
[ECO "D02"]
[WhiteElo "2207"]
[BlackElo "1502"]
[Annotator "TA"]
[PlyCount "127"]
[EventDate "2022.07.20"]
[EventType "swiss"]
[EventCountry "CZE"]
[SourceTitle "playchess.com"]
[Source "ChessBase"]
[SourceQuality "1"]
[TimeControl "1200+10"]

{[%evp 9,127,14,30,10,26,0,23,0,0,0,5,-5,2,-8,8,-20,34,-4,0,0,39,28,44,33,63,60,72,65,66,39,125,129,250,125,343,324,362,363,371,180,153,156,156,53,45,56,45,51,61,76,98,0,20,-34,0,-35,2,12,70,72,72,83,131,0,0,0,0,-263,-244,-455,-446,-859,-859,-823,-108,-108,-108,-108,0,0,0,-101,-101,-86,-108,-101,29995,0,0,-101,29995,0,0,0,0,0,0,-93,29995,0,0,0,0,0,0,-101,29995,0,0,0,0,0,0,0,0,0,0,-101,-108,-122]} 1. d4 {[%emt 0:00:05]} d5 {[%emt 0:00:02]} 2. Nf3 {[%emt 0:00:04]} Nf6 {[%emt 0:00:02]} 3. Bf4 {[%emt 0:00:03]} e6 {[%emt 0:00:22]} 4. c3 {[%emt 0:00:02]} c6 {[%emt 0:00:04]} 5. e3 {[%emt 0:00:10]} Bd6 {[%emt 0:00:04]} 6. Bg3 {[%emt 0:00:02] D02: 1 d4 d5 2 Nf3 sidelines, including 2...Nf6 3 g3 and 2...Nf6 3 Bf4.} Qc7 {[%emt 0:00:30]} 7. Bd3 {[%emt 0:00:56]} O-O {[%emt 0:00:16]} 8. Nbd2 {[%emt 0:00:13] White has an edge.} Nbd7 {[%emt 0:00:31]} 9. Qc2 {[%emt 0:00:21] [#]} b6 $146 {[%emt 0:00:45]} ({Predecessor:} 9... e5 10. dxe5 Nxe5 11. Nxe5 Bxe5 12. Nf3 Bd6 13. O-O-O Bg4 14. Rde1 Rfe8 15. Bxd6 Qxd6 {0-1 (49) Ahounou,V-Boidiya,S (1997) Tornelo INT 2022}) 10. c4 {[%emt 0:00:35]} h6 {[%emt 0:02:50]} 11. Rc1 {[%emt 0:00:06]} Bb7 {[%emt 0:00:36]} 12. a3 {[%emt 0:01:08]} Rac8 {[%emt 0:01:47]} (12... dxc4 $11 13. Qxc4 (13. Nxc4 Bxg3 14. hxg3 c5 $11) 13... e5) 13. b4 {[%emt 0:00:05]} Bxg3 {[%emt 0:00:07]} 14. hxg3 {[%emt 0:00:04]} Qb8 {[%emt 0:01:31]} 15. c5 {[%emt 0:01:29]} Rfe8 {[%emt 0:03:55]} 16. Qc3 {[%emt 0:01:04]} Re7 {[%emt 0:04:05]} 17. Ne5 {[%emt 0:00:26]} Nxe5 {[%emt 0:00:19]} 18. dxe5 {[%emt 0:00:01]} Nd7 {[%emt 0:00:01]} 19. Nf3 {[%emt 0:00:04]} Ree8 {[%emt 0:00:48]} (19... a5 $14) 20. g4 $1 $16 {[%emt 0:00:11]} Red8 {[%emt 0:00:37]} (20... Kf8 $16) 21. Qd4 {[%emt 0:00:56]} ({White has to play} 21. g5 $18) 21... f6 $2 {[%emt 0:01:04]} (21... bxc5 $16 {keeps fighting.} 22. bxc5 Qc7) 22. exf6 $18 {[%emt 0:00:15] g5 is the strong threat.} e5 {[%emt 0:00:05]} 23. Qc3 {[%emt 0:00:23]} e4 {[%emt 0:00:37] [#]} 24. fxg7 {[%emt 0:00:06]} exf3 {[%emt 0:00:15]} 25. gxf3 {[%emt 0:00:31] Dancing on a razor blade.} (25. Rxh6 fxg2 26. Bh7+ Kf7 27. Bg6+ Ke7 $15) 25... Qe5 {[%emt 0:00:11]} 26. Bf5 {[%emt 0:00:35]} ({White must play} 26. Rxh6 $16 {Strongly threatening Qc2.} Qxc3+ 27. Rxc3) 26... Qxc3+ $14 {[%emt 0:00:27]} 27. Rxc3 {[%emt 0:00:01]} Kxg7 {[%emt 0:00:02]} 28. g5 {[%emt 0:00:17]} Rc7 {[%emt 0:01:15]} 29. Rxh6 {[%emt 0:00:06]} Nf8 30. Rd3 {[%emt 0:01:19] White is much more active.} (30. f4 $16) 30... Bc8 {[%emt 0:00:34]} 31. e4 {[%emt 0:00:24]} (31. Bxc8 $11 Rcxc8 32. cxb6) 31... Re8 {[%emt 0:00:26] Threatens to win with ...Bxf5.} 32. Kd2 {[%emt 0:00:14]} Bxf5 {[%emt 0:00:22]} 33. exf5 {[%emt 0:00:02][%cal Be4f5,Bf5f6][%mdl 32]} Re5 {[%emt 0:00:00]} (33... bxc5 $11 34. bxc5 Kg8) 34. f6+ {[%emt 0:00:36]} Kf7 {[%emt 0:00:02]} 35. f4 {[%emt 0:00:07]} Re4 {[%emt 0:00:16]} ({Black should play} 35... Rf5) 36. Rf3 {[%emt 0:00:24]} (36. Rdh3 $16 Rc8 37. f5) 36... bxc5 $11 {[%emt 0:00:21]} 37. bxc5 {[%emt 0:00:02]} Rb7 {[%emt 0:00:01]} 38. Rfh3 $2 {[%emt 0:01:29][%mdl 8192]} (38. Rg3 $11 Rb2+ 39. Kc3 Rxf2 40. g6+ Nxg6 41. Rgxg6 Rf3+ 42. Kd2 Rf2+ 43. Kc3 Rf3+ 44. Kd2 Rfxf4 45. Rg7+ Ke6 46. Re7+ (46. Rxa7 Rf2+ 47. Kd3 Rf3+ 48. Kd2 Rf2+ 49. Kd3 Rf3+ 50. Kd2 Rf2+ $11) 46... Kf5 47. Rxa7) 38... Rb2+ $19 {[%emt 0:00:29]} 39. Kc3 $2 {[%emt 0:00:01]} (39. Kd1 {was the only defense.}) 39... Rxf2 {[%emt 0:00:03]} 40. Rh7+ {[%emt 0:01:07]} (40. f5 $142 Rxf5 41. Rg3) 40... Nxh7 {[%emt 0:00:12]} 41. Rxh7+ {[%emt 0:00:01] [#]} Kg8 $2 {[%emt 0:00:23]} (41... Ke8 $1 $19 {( -> ...Re3+)} 42. g6 Rexf4 43. Re7+ Kd8) 42. g6 $17 {[%emt 0:00:54] White wants to mate with f7+.} Rexf4 {[%emt 0:00:12]} 43. Rg7+ {[%emt 0:00:07]} Kh8 {[%emt 0:00:09]} 44. Rh7+ Kg8 45. Rg7+ {[%emt 0:00:05]} Kf8 {[%emt 0:00:21]} 46. Rf7+ {[%emt 0:00:02] [#]} Ke8 $1 {[%emt 0:00:07]} 47. Re7+ {[%emt 0:00:06]} Kf8 $2 {[%emt 0:00:26][%mdl 8192]} (47... Kd8 $17 48. g7 R4f3+ 49. Kd4 Rxf6 50. g8=Q+ Kxe7 51. Qg7+ Kd8) 48. Rf7+ $2 {[%emt 0:00:02]} (48. g7+ Kg8 49. Re8+ Kf7 50. g8=Q+ Kxf6 51. Re6+ Kf5 52. Qg6#) 48... Ke8 {[%emt 0:00:00]} ({Black should try} 48... Kg8 $11 49. Rg7+) 49. Re7+ {[%emt 0:00:01]} Kf8 $2 {[%emt 0:00:26][%mdl 8192]} (49... Kd8 $17 50. g7 R4f3+ 51. Kd4 Rxf6 52. g8=Q+ Kxe7 53. Qg7+ Kd8) 50. Rf7+ $2 {[%emt 0:00:01]} (50. g7+ Kg8 51. Re8+ Kf7 52. g8=Q+ Kxf6 53. Re6+ Kf5 54. Qg6#) 50... Kg8 $11 {[%emt 0:00:02]} 51. Rg7+ {[%emt 0:00:03]} Kf8 {[%emt 0:00:02]} 52. Rf7+ {[%emt 0:00:01]} Ke8 {[%emt 0:00:01]} (52... Kg8 $11 53. Rg7+) 53. Re7+ $17 {[%emt 0:00:02]} Kf8 $2 {[%emt 0:00:33][%mdl 8192]} (53... Kd8 $17 54. g7 R4f3+ 55. Kd4 Rxf6 56. g8=Q+ Kxe7 57. Qg7+ Kd8) 54. Rf7+ $2 {[%emt 0:00:01]} (54. g7+ Kg8 55. Re8+ Kf7 56. g8=Q+ Kxf6 57. Re6+ Kf5 58. Qg6#) 54... Kg8 $11 {[%emt 0:00:01]} 55. Rg7+ {[%emt 0:00:00]} Kf8 {[%emt 0:00:03]} 56. Rf7+ {[%emt 0:00:01]} Ke8 {[%emt 0:00:08]} ({Better is} 56... Kg8 $11 57. Rg7+) 57. Re7+ $17 {[%emt 0:00:01]} Kf8 $2 {[%emt 0:00:28][%mdl 8192]} (57... Kd8 $17 58. g7 R4f3+ 59. Kd4 Rxf6 60. g8=Q+ Kxe7 61. Qg7+ Kd8) 58. Rf7+ $2 {[%emt 0:00:01]} (58. g7+ {mates} Kg8 59. Re8+ Kf7 60. g8=Q+ Kxf6 61. Re6+ Kf5 62. Qg6#) 58... Kg8 $11 {[%emt 0:00:01]} 59. Rg7+ {[%emt 0:00:01]} Kh8 {[%emt 0:00:02]} 60. Rh7+ {[%emt 0:00:01]} Kg8 {[%emt 0:00:01]} 61. Rg7+ {[%emt 0:00:01]} Kf8 {[%emt 0:00:00]} 62. Rf7+ {[%emt 0:00:01]} Ke8 {[%emt 0:00:01]} (62... Kg8 $11 63. Rg7+) 63. Re7+ $17 {[%emt 0:00:01]} Kd8 (63... Kf8 {leads to mate.} 64. g7+ Kg8 65. Re8+ Kf7 66. g8=Q+ Kxf6 67. Re6+ Kf5 68. Qg6#) 64. g7 {Never resign too early!  Weighted Error Value: White=0.80/Black=0.60} 1/2-1/2

[Event "Czech Open-Rapid 2022"]
[Site "Pardubice"]
[Date "2022.07.20"]
[Round "1.29"]
[White "Vorel, Bohuslav"]
[Black "Aradhya, Garg"]
[Result "0-1"]
[ECO "C50"]
[WhiteElo "1605"]
[BlackElo "2229"]
[Annotator "TA"]
[PlyCount "60"]
[EventDate "2022.07.20"]
[EventType "swiss"]
[EventCountry "CZE"]
[SourceTitle "playchess.com"]
[Source "ChessBase"]
[SourceQuality "1"]
[TimeControl "1200+10"]

{[%evp 10,60,82,2,15,-22,21,-10,-8,-10,-10,-11,0,-32,-11,-38,-40,-53,-39,-49,-30,-37,-10,-12,-19,-134,-84,-85,-89,-112,-92,-86,0,0,0,-22,0,-346,-309,-344,-286,-379,-137,-137,-143,-329,-294,-399,-378,-29980,-29981,-29981,-29982]} 1. e4 {[%emt 0:00:03]} e5 {[%emt 0:00:01]} 2. Bc4 {[%emt 0:00:01]} Nf6 {[%emt 0:00:02]} 3. d3 {[%emt 0:00:03]} Nc6 {[%emt 0:00:12]} 4. Nf3 {[%emt 0:00:04]} Bc5 {[%emt 0:00:02]} 5. Be3 {[%emt 0:00:09]} d6 {[%emt 0:00:02]} 6. O-O {[%emt 0:00:03]} (6. Bxc5 $16 {Black must now prevent Be3.} dxc5 7. Bb5) 6... O-O {[%emt 0:00:03] C50: Hungarian Defence and Giuoco Pianissimo.} 7. h3 {[%emt 0:00:08] [#]} a5 $146 {[%emt 0:00:01]} ({Predecessor:} 7... Bxe3 8. fxe3 Ne7 9. Nc3 Ng6 10. Qe1 c6 11. Bb3 a5 12. Nh4 Nxh4 13. Qxh4 b5 14. a4 b4 15. Ne2 Be6 16. Bxe6 fxe6 17. d4 {0-1 (40) Thorgeirsson,S (2282)-Baramidze,D (2594) Kiel 2016}) 8. a3 {[%emt 0:00:27]} Bxe3 {[%emt 0:00:39] The position is equal.} 9. fxe3 {[%emt 0:00:03]} Ne7 {[%emt 0:00:01]} 10. Nc3 {[%emt 0:00:10]} c6 {[%emt 0:00:02]} 11. Qe2 {[%emt 0:00:24]} Ng6 {[%emt 0:00:02]} 12. b4 {[%emt 0:00:32]} b5 {[%emt 0:00:21]} 13. Ba2 {[%emt 0:00:09]} Ra7 {[%emt 0:00:01]} 14. Qf2 {[%emt 0:01:56]} Rd7 {[%emt 0:01:23]} 15. Ne2 {[%emt 0:00:27]} d5 {[%emt 0:00:19]} (15... Qb6 {looks sharper.} 16. bxa5 Qxa5 17. Nh4 Ne7) 16. exd5 {[%emt 0:00:32]} cxd5 {[%emt 0:00:12]} 17. c4 {[%emt 0:01:40]} (17. Nc3 $11) 17... bxc4 {[%emt 0:00:44]} ({Black should try} 17... e4 18. dxe4 Nxe4) 18. dxc4 $17 {[%emt 0:00:04]} axb4 {[%emt 0:00:02]} 19. axb4 {[%emt 0:00:07]} Ne4 {[%emt 0:00:01]} (19... dxc4 {seems wilder.} 20. Bxc4 Ne4 21. Qe1 Qb6) 20. Qe1 {[%emt 0:00:28]} d4 {[%emt 0:00:22]} (20... dxc4 $17 {Hoping for ...Rd3.} 21. Nc3 Nd6) 21. exd4 $1 $11 {[%emt 0:00:44]} exd4 {[%emt 0:00:02]} 22. Nexd4 {[%emt 0:01:01]} Rxd4 {[%emt 0:00:03]} 23. Nxd4 $4 {[%emt 0:01:05][%mdl 8192] [#]} (23. Qe3 $1 $11 {and White has nothing to worry.} Ng3 24. Nxd4 Qxd4 25. Qxd4 Ne2+ 26. Kh2 Nxd4 27. c5) 23... Qxd4+ $19 {[%emt 0:00:03]} 24. Kh1 {[%emt 0:00:03]} Bb7 {[%emt 0:01:10]} 25. c5 {[%emt 0:00:25]} h5 $2 {[%emt 0:00:29]} (25... Ne5 $19 {is more deadly. aiming for ...Nd3.} 26. c6 Bxc6) 26. Rd1 $17 {[%emt 0:01:37]} Qe5 {[%emt 0:02:29] ...Ng3+ is the strong threat. 0x0.001f2456e223dp-1022s more active pieces.} 27. Rd3 {[%emt 0:01:04] Prevents Ng3+. Now White is beyond hope.} (27. Rf3 $17) 27... h4 {[%emt 0:02:13]} ({Don't go for} 27... Ba6 $2 28. Rd5 Qg3 29. Qxe4 $19) 28. Kg1 {[%emt 0:03:41] [#]} Nf4 $1 {[%emt 0:01:31] The board is on fire.} 29. Qxh4 $2 {[%emt 0:01:17]} (29. Bxf7+ $19 Rxf7 30. Rd8+ Rf8 31. Rxf8+ Kxf8 32. c6) 29... Ne2+ {[%emt 0:00:32] Pair of Knights!} 30. Kh1 {[%emt 0:00:34]} N4g3+ {[%emt 0:00:02] Weighted Error Value: White=0.82/Black=0.31} 0-1